bitfinex/quotes_BTCUSD_20250331
["timestamp","ask_amount","ask_price","bid_price","bid_amount"]
[1743440602269,0.302337,83422.0,83421.0,0.52337786]
[1743440602504,0.302337,83422.0,83421.0,0.27164386]
[1743440602687,0.32475014,83422.0,83421.0,0.52337786]
[1743440602913,0.32475014,83422.0,83421.0,0.27164386]
[1743440603088,0.32475014,83422.0,83421.0,0.51139086]
[1743440603291,0.32475014,83422.0,83421.0,0.52337786]
[1743440604090,0.32275014,83422.0,83421.0,0.51537786]
[1743440604335,0.33595854,83422.0,83421.0,0.52337786]
[1743440605013,0.33595854,83422.0,83421.0,0.27164386]
[1743440605209,0.35049939,83422.0,83421.0,0.161027]
[1743440605456,0.35049939,83422.0,83421.0,0.400774]
[1743440605666,0.33595854,83422.0,83421.0,0.52337786]
[1743440605867,0.33595854,83422.0,83421.0,0.60637786]
[1743440606074,0.03595854,83422.0,83421.0,1.10637786]
[1743440606878,0.03495854,83422.0,83421.0,1.10237786]
[1743440607081,0.03395854,83422.0,83421.0,1.09854636]
[1743440607285,0.0125454,83422.0,83421.0,1.10654636]
[1743440607428,0.0135454,83422.0,83421.0,1.10654636]
[1743440608074,0.002337,83422.0,83421.0,1.10654636]
[1743440611670,1e-06,83422.0,83421.0,1.10654636]
[1743440612198,1e-06,83422.0,83421.0,2.20654636]
[1743440613524,1e-06,83422.0,83421.0,1.80654636]
[1743440616400,1e-06,83422.0,83421.0,1.80254636]
[1743440616610,1e-06,83422.0,83421.0,1.10254636]
[1743440616788,0.001001,83422.0,83421.0,1.10754636]
[1743440616988,0.001,83422.0,83421.0,1.10354636]
[1743440617189,0.002,83422.0,83421.0,1.10854636]
[1743440618859,0.0021685,83422.0,83421.0,1.10854636]
[1743440619046,5e-07,83422.0,83421.0,1.10854636]
[1743440619250,1e-07,83443.0,83442.0,0.011984]
[1743440619456,0.0472687,83461.0,83460.0,0.004]
[1743440619457,1.1e-07,83461.0,83460.0,0.004]
[1743440619659,1.1e-07,83461.0,83460.0,0.59371986]
[1743440619860,5.041e-05,83461.0,83460.0,0.59371986]
[1743440620394,5.041e-05,83461.0,83460.0,0.59271986]
[1743440620597,5.041e-05,83461.0,83460.0,1.09271986]
[1743440620978,0.00105041,83461.0,83460.0,1.09771986]
[1743440621181,0.00105041,83461.0,83460.0,1.01921986]
[1743440621538,0.00105041,83461.0,83460.0,1.01821986]
[1743440622290,0.00205041,83461.0,83460.0,1.02321986]
[1743440624577,0.00105041,83461.0,83460.0,1.01821986]
[1743440624844,5.041e-05,83461.0,83460.0,1.01321986]
[1743440624978,0.00105041,83461.0,83460.0,1.01821986]
[1743440625189,0.00105041,83461.0,83460.0,1.02421986]
[1743440630419,4.1e-07,83461.0,83460.0,1.15131986]
[1743440630999,4.1e-07,83461.0,83460.0,1.55165666]
[1743440631476,0.002,83469.0,83466.0,0.251598]
[1743440631679,0.002,83469.0,83466.0,0.37320186]
[1743440632114,0.002,83469.0,83466.0,0.87320186]
[1743440632737,0.0011687,83467.0,83466.0,1.50004186]
[1743440633575,0.0011687,83467.0,83466.0,1.49904186]
[1743440634015,0.0021687,83467.0,83466.0,1.50404186]
[1743440635957,0.0021687,83467.0,83466.0,1.50704186]
[1743440637864,0.0021687,83467.0,83466.0,1.59014186]
[1743440638675,7e-07,83469.0,83468.0,0.254592]
[1743440638902,7e-07,83469.0,83468.0,0.37719586]
[1743440639106,7e-07,83469.0,83468.0,0.77719586]
[1743440640249,7e-07,83469.0,83468.0,1.27719586]
[1743440640449,7e-07,83469.0,83468.0,1.28319586]
[1743440640598,7e-07,83469.0,83468.0,1.28919586]
[1743440641187,7e-07,83469.0,83468.0,1.02611586]
[1743440643146,7e-07,83469.0,83468.0,1.44211586]
[1743440643510,0.0001691,83469.0,83468.0,1.44211586]
[1743440644827,1e-07,83469.0,83468.0,1.44211586]
[1743440645028,1e-07,83469.0,83468.0,1.52231586]
[1743440645796,1e-07,83469.0,83468.0,1.51631586]
[1743440646627,1e-07,83469.0,83468.0,2.22231586]
[1743440648943,1e-07,83469.0,83468.0,2.5830871]
[1743440649158,1e-07,83469.0,83468.0,1.8830871]
[1743440650634,1e-07,83469.0,83468.0,2.5830871]
[1743440650838,5e-07,83475.0,83474.0,0.254574]
[1743440651020,5e-07,83475.0,83474.0,0.37717786]
[1743440652419,5e-07,83475.0,83474.0,0.87717786]
[1743440652792,5e-07,83475.0,83474.0,1.51081786]
[1743440653339,5e-07,83475.0,83474.0,1.58941786]
[1743440653582,0.000337,83496.0,83474.0,1.58941786]
[1743440653583,2e-07,83483.0,83482.0,0.242572]
[1743440653756,2e-07,83483.0,83482.0,0.93067386]
[1743440654333,2e-07,83483.0,83482.0,0.92767386]
[1743440654660,2e-07,83483.0,83482.0,0.93067386]
[1743440654864,2e-07,83483.0,83482.0,1.63067386]
[1743440655064,2e-07,83483.0,83482.0,2.13067386]
[1743440655649,2e-07,83483.0,83482.0,2.21857386]
[1743440656027,2e-07,83483.0,83482.0,1.52457386]
[1743440657910,2e-07,83483.0,83482.0,1.92457386]
[1743440658116,2e-07,83483.0,83482.0,1.52457386]
[1743440658417,2e-07,83483.0,83482.0,1.8853451]
[1743440659176,2e-07,83483.0,83482.0,2.5853451]
[1743440660397,0.07802608,83510.0,83508.0,0.239497]
[1743440660640,0.00046655,83510.0,83509.0,0.36209886]
[1743440660842,0.30046655,83510.0,83509.0,0.12260386]
[1743440661061,0.30046655,83510.0,83509.0,0.36209886]
[1743440661250,0.30046655,83510.0,83506.0,0.003]
[1743440661251,0.011975,83507.0,83506.0,0.003]
[1743440661482,0.56601585,83507.0,83506.0,0.003]
[1743440661984,0.56542585,83507.0,83506.0,0.003]
[1743440662342,0.56542585,83507.0,83506.0,0.009]
[1743440662865,0.56542585,83507.0,83506.0,0.015]
[1743440663209,0.96860285,83507.0,83506.0,0.012]
[1743440663332,0.99834285,83507.0,83506.0,0.012]
[1743440663531,0.99834285,83507.0,83506.0,0.006]
[1743440663771,0.88104285,83507.0,83506.0,0.006]
[1743440664023,0.86965785,83507.0,83506.0,0.012]
[1743440664380,0.86965785,83507.0,83506.0,0.006]
[1743440664581,0.88163285,83507.0,83506.0,0.006]
[1743440665417,0.88163285,83507.0,83506.0,0.012]
[1743440665571,0.88163285,83507.0,83506.0,0.006]
[1743440665775,0.63281585,83507.0,83506.0,0.009]
[1743440666002,0.3,83507.0,83506.0,0.015]
[1743440666404,0.31454085,83507.0,83506.0,0.015]
[1743440666644,0.55404085,83507.0,83506.0,0.012]
[1743440666794,0.83147285,83507.0,83506.0,0.009]
[1743440666994,0.83147285,83507.0,83506.0,0.015]
[1743440667351,0.83147285,83507.0,83506.0,0.009]
[1743440667562,0.83147285,83507.0,83506.0,0.015]
[1743440667773,0.83147285,83507.0,83506.0,0.012]
[1743440668306,0.83164125,83507.0,83506.0,0.012]
[1743440668656,0.89844125,83507.0,83506.0,0.012]
[1743440669642,0.63298425,83507.0,83506.0,0.012]
[1743440669841,0.85284325,83507.0,83506.0,0.012]
[1743440670472,0.89017732,83507.0,83506.0,0.012]
[1743440671031,0.85284325,83507.0,83506.0,0.012]
[1743440671246,0.89018388,83507.0,83506.0,0.012]
[1743440672720,0.82338388,83507.0,83506.0,0.012]
[1743440672919,0.75386288,83507.0,83506.0,0.012]
[1743440673559,0.50238788,83507.0,83506.0,0.015]
[1743440673770,0.31470925,83507.0,83506.0,0.015]
[1743440674328,0.55420925,83507.0,83506.0,0.015]
[1743440675855,0.56618425,83507.0,83506.0,0.015]
[1743440676259,0.56618425,83507.0,83506.0,0.012]
[1743440676621,0.60354126,83507.0,83506.0,0.012]
[1743440676824,2.04439126,83507.0,83506.0,0.012]
[1743440678459,2.11119126,83507.0,83506.0,0.012]
[1743440678694,2.28359512,83507.0,83506.0,0.012]
[1743440678903,2.16099126,83507.0,83506.0,0.012]
[1743440679296,2.16099126,83507.0,83506.0,0.006]
[1743440679501,2.16099126,83507.0,83506.0,0.0063366]
[1743440679698,2.16099126,83507.0,83506.0,0.0123366]
[1743440679877,2.16099126,83507.0,83506.0,0.0063366]
[1743440680081,2.16099126,83507.0,83506.0,0.0123366]
[1743440681646,0.72014126,83507.0,83506.0,0.0123366]
[1743440681846,3.63555726,83507.0,83506.0,0.0123366]
[1743440682051,3.63445726,83507.0,83506.0,0.0123366]
[1743440682308,3.6680707,83507.0,83506.0,0.0123366]
[1743440682609,3.73529755,83507.0,83506.0,0.0123366]
[1743440684146,4.14519755,83507.0,83506.0,0.0123366]
[1743440686072,4.0779707,83507.0,83506.0,0.0123366]
[1743440687452,2.3915827,83507.0,83506.0,0.0123366]
[1743440688256,2.35796926,83507.0,83506.0,0.0123366]
[1743440689291,1.38100626,83507.0,83506.0,0.0123366]
[1743440690292,0.97110626,83507.0,83506.0,0.0123366]
[1743440693286,0.65224126,83507.0,83506.0,0.0123366]
[1743440693749,3.28465526,83507.0,83506.0,0.0123366]
[1743440694125,3.13348026,83507.0,83506.0,0.0123366]
[1743440694929,2.97812926,83507.0,83506.0,0.0123366]
[1743440695127,2.61184126,83507.0,83506.0,0.0123366]
[1743440695449,2.47318326,83507.0,83506.0,0.0123366]
[1743440695627,2.44943226,83507.0,83506.0,0.0123366]
[1743440696030,2.27483426,83507.0,83506.0,0.0123366]
[1743440696629,0.73040726,83507.0,83506.0,0.0123366]
[1743440696871,0.99047326,83507.0,83506.0,0.0123366]
[1743440697077,0.42260241,83507.0,83506.0,0.0123366]
[1743440697404,0.03752541,83507.0,83506.0,0.2668146]
[1743440697614,0.01470925,83507.0,83506.0,0.2668146]
[1743440697789,0.01470925,83507.0,83506.0,0.2548396]
[1743440698531,0.31470925,83507.0,83506.0,0.0093366]
[1743440698693,0.31470925,83507.0,83506.0,0.2548396]
[1743440698908,0.31470925,83507.0,83506.0,0.2488396]
[1743440699337,0.31470925,83507.0,83506.0,0.2548396]
[1743440699865,0.01470925,83507.0,83506.0,0.2548396]
[1743440700064,0.01470925,83507.0,83506.0,0.2668146]
[1743440700281,0.0001684,83507.0,83506.0,0.38941846]
[1743440700473,0.0001684,83507.0,83506.0,0.46691846]
[1743440701371,0.0001684,83507.0,83506.0,0.96691846]
[1743440701572,0.0001684,83507.0,83506.0,0.96091846]
[1743440701771,0.0001684,83507.0,83506.0,0.96691846]
[1743440702027,0.0001684,83507.0,83506.0,0.96091846]
[1743440702220,0.56618425,83507.0,83506.0,0.6462566]
[1743440702422,0.56618425,83507.0,83506.0,0.6522566]
[1743440702630,0.56618425,83507.0,83506.0,0.1522566]
[1743440702782,0.56618425,83507.0,83506.0,0.0123366]
[1743440703210,0.56618425,83507.0,83506.0,0.0063366]
[1743440703785,0.31470925,83507.0,83506.0,0.0033366]
[1743440704192,0.3001684,83507.0,83506.0,0.2548146]
[1743440704440,0.3001684,83507.0,83506.0,0.0033366]
[1743440704610,0.3001684,83507.0,83506.0,0.0093366]
[1743440704998,0.3001684,83507.0,83506.0,0.0153366]
[1743440705277,0.3001684,83507.0,83506.0,0.0093366]
[1743440705429,0.3001684,83507.0,83506.0,0.0153366]
[1743440705835,0.3001684,83507.0,83506.0,0.2548396]
[1743440705998,0.3001684,83507.0,83506.0,0.0153366]
[1743440706586,0.3001684,83507.0,83506.0,0.2668146]
[1743440706789,0.3001684,83507.0,83506.0,0.38941846]
[1743440706912,0.3001684,83507.0,83506.0,0.87744346]
[1743440707683,0.3001684,83507.0,83506.0,0.88941846]
[1743440708183,0.3001684,83507.0,83506.0,1.00731846]
[1743440708387,0.3001684,83507.0,83506.0,1.01331846]
[1743440708586,0.3001684,83507.0,83506.0,1.01931846]
[1743440709014,0.3001684,83507.0,83506.0,1.01331846]
[1743440709392,0.3001684,83507.0,83506.0,1.01931846]
[1743440710638,0.3001684,83507.0,83506.0,0.72084046]
[1743440710816,0.3001684,83507.0,83506.0,0.96034346]
[1743440711158,0.3001684,83507.0,83506.0,0.72084046]
[1743440711481,0.5396684,83507.0,83506.0,0.72084046]
[1743440711617,0.3001684,83507.0,83506.0,0.72084046]
[1743440711816,0.55420925,83507.0,83506.0,0.7351566]
[1743440712218,0.56618425,83507.0,83506.0,0.7351566]
[1743440712412,0.31470925,83507.0,83506.0,0.5153366]
[1743440712651,0.55420925,83507.0,83506.0,0.5123366]
[1743440712821,0.56618425,83507.0,83506.0,0.5123366]
[1743440713018,1.2324042,83507.0,83506.0,0.5123366]
[1743440713603,1.2324042,83507.0,83506.0,0.0123366]
[1743440714273,1.2324042,83507.0,83506.0,0.0063366]
[1743440714472,1.2324042,83507.0,83506.0,0.0123366]
[1743440714876,1.2324042,83507.0,83506.0,0.0063366]
[1743440715223,1.2324042,83507.0,83506.0,0.0123366]
[1743440716395,0.6035242,83507.0,83506.0,0.0123366]
[1743440716600,2.9346702,83507.0,83506.0,0.0123366]
[1743440716800,1.9210832,83507.0,83506.0,0.0123366]
[1743440717007,1.6229662,83507.0,83506.0,0.0123366]
[1743440717241,1.6229662,83507.0,83506.0,0.0063366]
[1743440717641,1.6229662,83507.0,83506.0,0.0123366]
[1743440717868,1.6229662,83507.0,83506.0,0.0063366]
[1743440718032,1.6229662,83507.0,83506.0,0.0123366]
[1743440719322,1.4454042,83507.0,83506.0,0.0123366]
[1743440719470,0.8301502,83507.0,83506.0,0.0123366]
[1743440719873,0.6035242,83507.0,83506.0,0.0123366]
[1743440720232,0.33750835,83507.0,83506.0,0.0153366]
[1743440720656,0.3001684,83507.0,83506.0,0.2548396]
[1743440721062,0.3001684,83507.0,83506.0,0.0153366]
[1743440721476,0.0001684,83507.0,83506.0,0.2548146]
[1743440721682,0.0001684,83507.0,83506.0,0.37741846]
[1743440721893,0.0001684,83507.0,83506.0,0.52033846]
[1743440722333,0.0001684,83507.0,83506.0,1.02633846]
[1743440722938,0.0001684,83507.0,83506.0,1.10733846]
[1743440723928,0.0001684,83507.0,83506.0,1.10133846]
[1743440724744,0.0001684,83507.0,83506.0,1.10733846]
[1743440725910,0.0001684,83507.0,83506.0,0.96741846]
[1743440726114,0.5396684,83507.0,83506.0,0.7332566]
[1743440726486,0.56618425,83507.0,83506.0,0.6522566]
[1743440727366,0.56618425,83507.0,83506.0,0.1522566]
[1743440731392,0.56618425,83507.0,83506.0,0.0123366]
[1743440731916,1.58405896,83507.0,83506.0,0.0123366]
[1743440733154,1.50294596,83507.0,83506.0,0.0123366]
[1743440733483,1.42254496,83507.0,83506.0,0.0063366]
[1743440733691,1.19165496,83507.0,83506.0,0.0003366]
[1743440733824,1.19165496,83507.0,83506.0,0.0063366]
[1743440733825,0.78394196,83507.0,83506.0,0.0063366]
[1743440734027,0.53246696,83507.0,83506.0,0.0063366]
[1743440734233,0.59156696,83507.0,83506.0,0.0943366]
[1743440734435,0.59156696,83507.0,83506.0,0.0883366]
[1743440734683,0.55420925,83507.0,83506.0,0.1035239]
[1743440734998,0.55420925,83507.0,83506.0,0.3640019]
[1743440734999,0.31470925,83507.0,83506.0,0.3640019]
[1743440735198,0.0001684,83507.0,83506.0,0.48660576]
[1743440735429,0.0001684,83507.0,83506.0,0.48060576]
[1743440735628,0.0001684,83507.0,83506.0,0.48660576]
[1743440736402,0.0001684,83507.0,83506.0,0.48060576]
[1743440736803,0.0001684,83507.0,83506.0,0.98660576]
[1743440736979,0.0001684,83507.0,83506.0,0.97460576]
[1743440737380,0.0001684,83507.0,83506.0,0.98060576]
[1743440737692,4e-07,83507.0,83506.0,0.98060576]
[1743440737898,9.5e-07,83510.0,83509.0,0.386869]
[1743440738092,9.5e-07,83510.0,83509.0,1.02229754]
[1743440738298,0.29854073,83540.0,83528.0,0.336912]
[1743440738503,0.0021399,83529.0,83528.0,0.61149196]
[1743440739689,0.0021399,83529.0,83528.0,1.11149196]
[1743440740924,0.0021399,83529.0,83528.0,1.12349196]
[1743440741748,0.0021399,83529.0,83528.0,1.58839196]
[1743440742928,0.0021399,83529.0,83528.0,1.57639196]
[1743440743338,0.0021399,83529.0,83528.0,1.58239196]
[1743440744443,0.0021399,83529.0,83528.0,1.58839196]
[1743440746393,0.0021399,83529.0,83528.0,1.58835196]
[1743440746739,0.0021399,83529.0,83528.0,1.45151196]
[1743440746951,0.0021399,83529.0,83528.0,1.58535196]
[1743440747171,0.0021399,83529.0,83528.0,1.58835196]
[1743440748771,0.0023082,83529.0,83528.0,1.58835196]
[1743440756112,2e-07,83529.0,83528.0,1.58835196]
[1743440756575,2e-07,83529.0,83528.0,1.98835196]
[1743440757160,2e-07,83529.0,83528.0,1.98235196]
[1743440757325,2e-07,83529.0,83528.0,1.98835196]
[1743440757525,2e-07,83529.0,83528.0,1.98235196]
[1743440757727,2e-07,83529.0,83528.0,1.98835196]
[1743440758211,0.0001684,83545.0,83544.0,0.254363]
[1743440758482,0.0001684,83545.0,83544.0,0.65052461]
[1743440759099,0.0001684,83545.0,83544.0,0.51372461]
[1743440759302,0.0001684,83545.0,83544.0,0.60552461]
[1743440759441,0.0001684,83545.0,83544.0,1.10552461]
[1743440760220,0.0001684,83545.0,83544.0,1.11752461]
[1743440760579,0.0001684,83545.0,83544.0,1.11152461]
[1743440760800,0.0001684,83545.0,83544.0,1.10552461]
[1743440761000,0.0001684,83545.0,83544.0,1.11152461]
[1743440761583,0.0021684,83559.0,83554.0,0.011968]
[1743440761780,0.00230817,83559.0,83557.0,0.239357]
[1743440761976,0.00230817,83559.0,83558.0,0.27431505]
[1743440762487,0.00230817,83559.0,83558.0,0.52863605]
[1743440763477,0.00230817,83559.0,83558.0,0.78331505]
[1743440763691,0.25362617,83559.0,83558.0,0.78331505]
[1743440763893,0.30230817,83559.0,83558.0,0.78331505]
[1743440764037,0.30230817,83559.0,83558.0,0.52091119]
[1743440764038,0.56816702,83559.0,83558.0,0.52091119]
[1743440764244,0.56816702,83559.0,83558.0,0.52391119]
[1743440764726,0.56816702,83559.0,83558.0,0.52991119]
[1743440765129,0.56816702,83559.0,83558.0,0.52391119]
[1743440765429,0.56816702,83559.0,83558.0,0.51491119]
[1743440765846,0.56816702,83559.0,83558.0,0.01791119]
[1743440766097,0.56816702,83559.0,83558.0,0.009]
[1743440766355,0.61606702,83559.0,83558.0,0.006]
[1743440766475,1.71777402,83559.0,83558.0,0.006]
[1743440767076,0.56816702,83559.0,83558.0,0.006]
[1743440767270,0.56816702,83559.0,83558.0,0.015]
[1743440767731,0.56816702,83559.0,83558.0,0.009]
[1743440767953,0.56816702,83559.0,83558.0,0.02391543]
[1743440768163,0.56816702,83559.0,83558.0,0.015]
[1743440768347,0.56816702,83559.0,83558.0,0.02391543]
[1743440768917,0.55620002,83559.0,83558.0,0.02391543]
[1743440769119,0.56816702,83559.0,83558.0,0.015]
[1743440769337,0.56816702,83559.0,83558.0,0.02991543]
[1743440769491,0.56816702,83559.0,83558.0,0.015]
[1743440769880,0.56816702,83559.0,83558.0,0.02391543]
[1743440770658,0.56816702,83559.0,83558.0,0.015]
[1743440771252,1.45967188,83559.0,83558.0,1e-06]
[1743440771463,1.54449311,83559.0,83558.0,1e-06]
[1743440772059,0.551376,83540.0,83539.0,0.003]
[1743440772262,0.3,83540.0,83539.0,0.37698286]
[1743440772473,0.3,83540.0,83539.0,0.39196495]
[1743440774120,0.301,83540.0,83539.0,0.89496495]
[1743440777696,0.302,83540.0,83539.0,0.89496495]
[1743440780665,0.302,83540.0,83539.0,0.88299495]
[1743440781207,0.302,83540.0,83539.0,0.89496495]
[1743440781410,0.302,83540.0,83539.0,0.64358595]
[1743440781644,0.541406,83540.0,83539.0,0.64358595]
[1743440781846,0.302,83540.0,83539.0,0.64358595]
[1743440782143,0.302,83540.0,83539.0,0.65555595]
[1743440782346,0.302,83540.0,83539.0,0.89496495]
[1743440782717,0.302,83540.0,83539.0,0.64358595]
[1743440783074,0.302,83540.0,83539.0,1.03176495]
[1743440783236,0.302,83540.0,83539.0,1.01979495]
[1743440783437,0.302,83540.0,83539.0,0.78038595]
[1743440783759,0.302,83540.0,83539.0,1.01979495]
[1743440783934,0.302,83540.0,83539.0,1.03176495]
[1743440784481,0.302,83540.0,83539.0,1.11386495]
[1743440785685,0.301,83540.0,83539.0,1.11386495]
[1743440785892,0.301,83540.0,83539.0,1.11420195]
[1743440786087,0.302,83540.0,83539.0,1.11720195]
[1743440786472,0.301,83540.0,83539.0,0.97740195]
[1743440786692,0.56791685,83540.0,83539.0,0.52431909]
[1743440787136,0.56691685,83540.0,83539.0,0.52131909]
[1743440787787,0.56791685,83540.0,83539.0,0.52431909]
[1743440787990,0.56691685,83540.0,83539.0,0.52131909]
[1743440788111,0.56591685,83540.0,83539.0,0.51831909]
[1743440788486,0.56691685,83540.0,83539.0,0.52131909]
[1743440789244,0.56791685,83540.0,83539.0,0.52431909]
[1743440789439,0.31654085,83540.0,83539.0,0.52431909]
[1743440789656,0.32851085,83540.0,83539.0,0.52431909]
[1743440790076,0.56791685,83540.0,83539.0,0.52431909]
[1743440791465,0.56791685,83540.0,83539.0,0.52131909]
[1743440791664,0.56791685,83540.0,83539.0,0.52431909]
[1743440792308,0.56791685,83540.0,83539.0,0.02431909]
[1743440792568,0.56691685,83540.0,83539.0,0.02131909]
[1743440792828,0.56791685,83540.0,83539.0,0.009337]
[1743440793429,0.31654085,83540.0,83539.0,0.009337]
[1743440793633,0.56791685,83540.0,83539.0,0.009337]
[1743440793809,0.56691685,83540.0,83539.0,0.006337]
[1743440794184,0.56791685,83540.0,83539.0,0.009337]
[1743440795940,0.56791685,83540.0,83539.0,0.006337]
[1743440796238,0.67207678,83540.0,83539.0,0.006337]
[1743440796434,1.63672478,83540.0,83539.0,0.006337]
[1743440797044,1.63472478,83540.0,83539.0,0.000337]
[1743440797251,1.56892478,83540.0,83539.0,0.003337]
[1743440797453,0.80545578,83540.0,83539.0,0.006337]
[1743440799033,0.73940478,83540.0,83539.0,0.006337]
[1743440799235,0.35390078,83540.0,83539.0,0.009337]
[1743440799440,0.35390078,83540.0,83539.0,0.02434512]
[1743440799641,0.60527678,83540.0,83539.0,0.009337]
[1743440799846,0.56791685,83540.0,83539.0,0.009337]
[1743440801014,0.55594685,83540.0,83539.0,0.009337]
[1743440801219,0.55594685,83540.0,83539.0,0.02434512]
[1743440801746,0.56791685,83540.0,83539.0,0.02434512]
[1743440802054,0.56691685,83540.0,83539.0,0.02134512]
[1743440802254,0.56591685,83540.0,83539.0,0.01834512]
[1743440802391,0.56691685,83540.0,83539.0,0.02134512]
[1743440802960,0.31554085,83540.0,83539.0,0.03331512]
[1743440803170,0.31554085,83540.0,83539.0,0.27272412]
[1743440803341,0.301,83540.0,83539.0,0.39532798]
[1743440803545,0.3,83540.0,83539.0,0.39232798]
[1743440803765,0.301,83540.0,83539.0,0.39532798]
[1743440803921,0.302,83540.0,83539.0,0.39832798]
[1743440804153,0.301,83540.0,83539.0,0.39532798]
[1743440804353,0.302,83540.0,83539.0,0.39832798]
[1743440804686,0.302,83540.0,83539.0,0.53512798]
[1743440805468,0.302,83540.0,83539.0,1.03512798]
[1743440805830,0.301,83540.0,83539.0,1.03212798]
[1743440806175,0.302,83540.0,83539.0,1.03512798]
[1743440806376,0.002,83540.0,83539.0,1.15962798]
[1743440806783,0.001,83540.0,83539.0,1.15662798]
[1743440806985,0.00230817,83559.0,83557.0,0.331924]
[1743440807161,0.00230817,83559.0,83557.0,0.63962786]
[1743440807509,0.00230817,83559.0,83557.0,0.65455897]
[1743440807890,0.00230817,83559.0,83557.0,0.65355897]
[1743440808317,0.0011685,83558.0,83557.0,1.15655897]
[1743440808807,0.0011685,83558.0,83557.0,1.15555897]
[1743440809576,0.0021685,83558.0,83557.0,1.15855897]
[1743440809929,0.0011685,83558.0,83557.0,1.15555897]
[1743440810372,0.0021685,83558.0,83557.0,1.15955897]
[1743440810751,0.0021685,83558.0,83557.0,1.15989597]
[1743440815124,0.3021685,83558.0,83557.0,0.72547197]
[1743440815283,0.3021685,83558.0,83557.0,1.03595597]
[1743440815920,0.3021685,83558.0,83557.0,1.02398897]
[1743440816194,0.0021685,83558.0,83557.0,1.03595597]
[1743440817710,0.0001685,83558.0,83557.0,1.02895597]
[1743440818017,0.0011685,83558.0,83557.0,1.03295597]
[1743440818373,0.0021685,83558.0,83557.0,1.03795597]
[1743440822977,0.0011685,83558.0,83557.0,1.03295597]
[1743440823212,0.0001685,83558.0,83557.0,1.02895597]
[1743440823452,0.0011685,83558.0,83557.0,1.03295597]
[1743440823655,0.25544381,83568.0,83567.0,0.251294]
[1743440823858,0.25556648,83568.0,83567.0,0.3887586]
[1743440824396,0.00012267,83568.0,83567.0,0.3887586]
[1743440824601,0.00012267,83568.0,83567.0,0.4683586]
[1743440825051,0.00012267,83568.0,83567.0,0.4673586]
[1743440825622,0.23944867,83568.0,83567.0,0.1404646]
[1743440825821,0.55498952,83568.0,83567.0,0.02286074]
[1743440826196,0.31666352,83568.0,83567.0,0.02786074]
[1743440826401,0.31666352,83568.0,83567.0,0.26718874]
[1743440827006,0.31666352,83568.0,83567.0,0.27915474]
[1743440827963,0.55598952,83568.0,83567.0,0.02786074]
[1743440828306,0.31666352,83568.0,83567.0,0.26718874]
[1743440829412,0.30212267,83568.0,83567.0,0.4017586]
[1743440829617,0.30212267,83568.0,83567.0,0.4850586]
[1743440830486,0.30212267,83568.0,83567.0,0.9850586]
[1743440834324,0.30229117,83568.0,83567.0,0.9850586]
[1743440837137,0.30229117,83568.0,83567.0,0.52786074]
[1743440837138,0.55615802,83568.0,83567.0,0.52786074]
[1743440837290,0.56812402,83568.0,83567.0,0.52786074]
[1743440837450,0.56812402,83568.0,83567.0,0.66458074]
[1743440837661,0.56812402,83568.0,83567.0,0.52786074]
[1743440838382,0.56812402,83568.0,83567.0,0.02786074]
[1743440838811,0.56812402,83568.0,83567.0,0.013]
[1743440840418,0.56712402,83568.0,83567.0,0.008]
[1743440840798,0.56712402,83568.0,83567.0,0.01984939]
[1743440841001,0.60549146,83568.0,83567.0,0.01]
[1743440842152,0.60549146,83568.0,83567.0,0.013]
[1743440842368,0.31683202,83568.0,83567.0,0.013]
[1743440842594,0.31683202,83568.0,83567.0,0.252328]
[1743440842877,0.31683202,83568.0,83567.0,0.26717739]
[1743440843243,0.31683202,83568.0,83567.0,0.27914339]
[1743440844385,0.30229117,83568.0,83567.0,0.40174725]
[1743440845261,0.30229117,83568.0,83567.0,0.90174725]
[1743440846063,0.30129117,83568.0,83567.0,0.89674725]
[1743440846442,0.30229117,83568.0,83567.0,0.90174725]
[1743440846642,0.30229117,83568.0,83567.0,0.90208425]
[1743440846849,0.30129117,83568.0,83567.0,0.89708425]
[1743440847148,0.30229117,83568.0,83567.0,0.90208425]
[1743440854622,0.30129117,83568.0,83567.0,0.89708425]
[1743440854802,0.30229117,83568.0,83567.0,0.90208425]
[1743440855381,0.30129117,83568.0,83567.0,0.89708425]
[1743440855709,0.30229117,83568.0,83567.0,0.90208425]
[1743440857055,0.30229117,83568.0,83567.0,0.65079025]
[1743440857235,0.56812402,83568.0,83567.0,0.66490639]
[1743440857779,0.55615802,83568.0,83567.0,0.66490639]
[1743440857986,0.56812402,83568.0,83567.0,0.66490639]
[1743440858191,0.56812402,83568.0,83567.0,0.52518639]
[1743440858415,0.6055184,83568.0,83567.0,0.52518639]
[1743440859783,0.6055184,83568.0,83567.0,0.52818639]
[1743440860424,0.3542264,83568.0,83567.0,0.52818639]
[1743440860631,0.31683202,83568.0,83567.0,0.52818639]
[1743440860894,0.55615802,83568.0,83567.0,0.52818639]
[1743440861299,0.56812402,83568.0,83567.0,0.52818639]
[1743440861473,0.31683202,83568.0,83567.0,0.52818639]
[1743440861678,0.55615802,83568.0,83567.0,0.52818639]
[1743440861897,0.31683202,83568.0,83567.0,0.513337]
[1743440862257,0.55615802,83568.0,83567.0,0.52819084]
[1743440863054,0.56812402,83568.0,83567.0,0.52819084]
[1743440869409,0.56812402,83568.0,83567.0,0.52519084]
[1743440869611,0.60551331,83568.0,83567.0,0.52519084]
[1743440870826,0.60551331,83568.0,83567.0,0.02519084]
[1743440871316,0.60551331,83568.0,83567.0,0.010337]
[1743440873636,1.82713731,83568.0,83567.0,0.010337]
[1743440873990,1.14710331,83568.0,83567.0,0.010337]
[1743440874196,0.35422131,83568.0,83567.0,0.010337]
[1743440874397,0.60451331,83568.0,83567.0,0.005337]
[1743440875020,0.59254731,83568.0,83567.0,0.083537]
[1743440875225,0.35322131,83568.0,83567.0,0.083537]
[1743440875424,0.35322131,83568.0,83567.0,0.09839447]
[1743440875632,0.35222131,83568.0,83567.0,0.329831]
[1743440875834,0.31483202,83568.0,83567.0,0.34468847]
[1743440876262,0.31683202,83568.0,83567.0,0.34272247]
[1743440876856,0.31683202,83568.0,83567.0,0.35468847]
[1743440877055,0.31583202,83568.0,83567.0,0.84968847]
[1743440877251,0.31483202,83568.0,83567.0,0.84468847]
[1743440877479,0.31683202,83568.0,83567.0,0.85368847]
[1743440877892,0.56812402,83568.0,83567.0,0.60239447]
[1743440878102,0.56812402,83568.0,83567.0,0.73907447]
[1743440878307,0.56812402,83568.0,83567.0,0.66387447]
[1743440879522,0.55615802,83568.0,83567.0,0.66387447]
[1743440879662,0.31683202,83568.0,83567.0,0.66387447]
[1743440880116,0.31683202,83568.0,83567.0,0.90320247]
[1743440880543,0.31683202,83568.0,83567.0,0.91516847]
[1743440880826,0.30229117,83568.0,83567.0,1.03777233]